fUST/lending_fUST_20241211
["ID","MTS","AMOUNT","RATE_DAILY","PERIOD"]
[345002589,1733919040603,-151.0,0.00030643,7]
[345002590,1733919040611,-151.0,0.00030643,7]
[345002591,1733919040619,-151.0,0.00030643,7]
[345002592,1733919040629,-151.0,0.00030643,7]
[345002593,1733919040639,-151.0,0.00030643,7]
[345002594,1733919040649,-151.0,0.00030643,7]
[345002595,1733919040660,-151.0,0.00030643,7]
[345002596,1733919040669,-151.0,0.00030643,7]
[345002597,1733919040679,-219.951904,0.00030643,7]
[345002598,1733919040688,-151.0,0.00030643,7]
[345002599,1733919040697,-151.0,0.00030643,7]
[345002600,1733919040706,-151.0,0.00030643,7]
[345002601,1733919040716,-151.0,0.00030643,7]
[345002602,1733919040724,-151.0,0.00030643,7]
[345002603,1733919040734,-269.063881,0.00030643,7]
[345002604,1733919040743,-151.0,0.00030643,7]
[345002605,1733919040752,-151.0,0.00030643,7]
[345002606,1733919040761,-151.0,0.00030643,7]
[345002607,1733919040770,-151.0,0.00030643,7]
[345002608,1733919040779,-151.0,0.00030643,7]
[345002609,1733919040788,-151.0,0.00030643,7]
[345002610,1733919040797,-151.0,0.00030643,7]
[345002611,1733919040806,-151.0,0.00030643,7]
[345002612,1733919040817,-151.0,0.00030643,7]
[345002613,1733919040826,-151.0,0.00030643,7]
[345002614,1733919040836,-151.0,0.00030643,7]
[345002615,1733919040845,-151.0,0.00030643,7]
[345002616,1733919040854,-265.857291,0.00030643,7]
[345002617,1733919040863,-151.0,0.00030643,7]
[345002618,1733919040873,-151.0,0.00030643,7]
[345002619,1733919040882,-151.0,0.00030643,7]
[345002620,1733919040891,-151.0,0.00030643,7]
[345002621,1733919040901,-151.0,0.00030643,7]
[345002622,1733919040910,-151.0,0.00030643,7]
[345002623,1733919040919,-151.0,0.00030643,7]
[345002624,1733919040928,-151.0,0.00030643,7]
[345002625,1733919040937,-151.0,0.00030643,7]
[345002626,1733919040946,-151.0,0.00030643,7]
[345002627,1733919040956,-151.0,0.00030643,7]
[345002628,1733919040965,-202.796596,0.00030643,7]
[345002629,1733919040974,-151.0,0.00030643,7]
[345002630,1733919040984,-287.768838,0.00030643,7]
[345002631,1733919040996,-151.0,0.00030643,7]
[345002632,1733919041006,-151.0,0.00030643,7]
[345002633,1733919041015,-151.0,0.00030643,7]
[345002634,1733919041024,-151.0,0.00030643,7]
[345002635,1733919041033,-151.0,0.00030643,7]
[345002636,1733919041043,-151.0,0.00030643,7]
[345002637,1733919041053,-151.0,0.00030643,7]
[345002638,1733919041063,-151.0,0.00030643,7]
[345002639,1733919041072,-151.0,0.00030643,7]
[345002640,1733919041080,-151.0,0.00030643,7]
[345002641,1733919041089,-151.0,0.00030643,7]
[345002642,1733919041098,-211.57603,0.00030643,7]
[345002643,1733919041107,-151.0,0.00030643,7]
[345002644,1733919041117,-153.537211,0.00030643,7]
[345002645,1733919041126,-152.694,0.00030643,7]
[345002646,1733919041135,-156.163267,0.00030643,7]
[345002647,1733919041144,-151.0,0.00030643,7]
[345002648,1733919041153,-151.0,0.00030643,7]
[345002649,1733919041163,-151.0,0.00030643,7]
[345002650,1733919041172,-151.0,0.00030643,7]
[345002651,1733919041181,-195.30718,0.00030643,7]
[345002652,1733919041190,-151.465447,0.00030643,7]
[345002653,1733919041200,-151.0,0.00030643,7]
[345002654,1733919041211,-1263209.54079333,0.00030643,10]
[345002655,1733919041226,-3627.27,0.00030643,10]
[345002656,1733919041254,-500.0,0.00029863,7]
[345002657,1733919041265,-503.55696333,0.00029863,7]
[345002658,1733919041274,-501.90419744,0.00029863,7]
[345002659,1733919041284,-652.807,0.00030635,7]
[345002660,1733919041294,-1819.15356239,0.00030643,10]
[345002700,1733919043635,-500.0,0.00029863,7]
[345002702,1733919043644,-155.20023296,0.00029863,7]
[345002704,1733919043654,-502.67658723,0.00030555,5]
[345002706,1733919043663,-500.0,0.00030638,11]
[345002708,1733919043672,-34788.78969866,0.00030643,10]
[345002763,1733919046213,-153.0,0.00029644,2]
[345002764,1733919046223,-506.78705215,0.00029863,7]
[345002765,1733919046231,-500.0,0.00029863,7]
[345002766,1733919046241,-514.5216052,0.00029863,7]
[345002767,1733919046251,-153.0,0.00030082,30]
[345002768,1733919046260,-190.070075,0.00030643,7]
[345002769,1733919046269,-132.90364179,0.00030643,10]
[345002789,1733919048347,166.0,0.00022,2]
[345002790,1733919125013,4158.0,0.0002,3]
[345002791,1733919125620,4154.0,0.0002,3]
[345002792,1733919125941,4154.0,0.0002,3]
[345002793,1733919126241,4154.0,0.0002,3]
[345002794,1733919126532,4154.0,0.0002,3]
[345002795,1733919127305,4154.0,0.0002,3]
[345002796,1733919170206,3252.22836789,0.00022914,2]
[345002797,1733919242327,4328.24343129,0.00023,2]
[345002852,1733919441937,274.814147,0.00013973,2]
[345002853,1733919442156,274.814147,0.00020447,2]
[345002854,1733919481706,150.219999,0.0002,2]
[345002856,1733919805540,199.98,0.00023,10]
[345002857,1733919833965,199.0,0.00023,2]
[345002876,1733920075836,243.37596342,0.00023,2]
[345002877,1733920080072,9032.11567733,0.00016,2]
[345002882,1733920102174,400.77755946,0.000125,2]
[345002886,1733920121598,150.999999,0.00023,2]
[345002887,1733920121879,2402.11510505,0.00020377,2]
[345002888,1733920123426,1690.14778193,0.0001999,2]
[345002889,1733920124086,171.30694667,0.000175,2]
[345002892,1733920142518,-167.0,0.00023014,2]
[345002893,1733920142557,-600.0,0.000235,2]
[345002894,1733920142595,-600.0,0.00024,3]
[345002895,1733920142628,-423.75931041,0.00024,7]
[345002927,1733920232874,-300.0,0.00024499,2]
[345002928,1733920232884,-300.0,0.00024499,2]
[345002929,1733920232894,-62716.47013795,0.000245,2]
[345002930,1733920232904,-1045.27407867,0.000249,7]
[345002931,1733920232913,-1045.27407867,0.000249,7]
[345002932,1733920232923,-1045.27407867,0.000249,7]
[345002933,1733920232933,-1045.27407867,0.000249,7]
[345002934,1733920232943,-1045.27407867,0.000249,7]
[345002935,1733920232953,-1045.27407867,0.000249,7]
[345002936,1733920232962,-1045.27407867,0.000249,7]
[345002937,1733920232972,-1045.27407867,0.000249,7]
[345002938,1733920232982,-1045.27407867,0.000249,7]
[345002939,1733920232991,-1045.27407867,0.000249,7]
[345002940,1733920233003,-1045.27407867,0.000249,7]
[345002941,1733920233013,-1045.27407867,0.000249,7]
[345002942,1733920233023,-1045.27407867,0.000249,7]
[345002943,1733920233034,-1045.27407867,0.000249,7]
[345002944,1733920233044,-1045.27407867,0.000249,7]
[345002945,1733920233054,-1045.27407867,0.000249,7]
[345002946,1733920233064,-1045.27407867,0.000249,7]
[345002947,1733920233074,-1045.27407867,0.000249,7]
[345002948,1733920233085,-1045.27407867,0.000249,7]
[345002949,1733920233095,-1045.27,0.000249,7]
[345002950,1733920233106,-1032.49322544,0.000249,7]
[345002951,1733920233119,-535.41789256,0.000249,7]
[345002952,1733920233129,-1567.911118,0.000249,7]
[345002953,1733920233139,-1567.911118,0.000249,7]
[345002954,1733920233150,-1567.911118,0.000249,7]
[345002955,1733920233160,-1567.911118,0.000249,7]
[345002956,1733920233171,-1567.911118,0.000249,7]
[345002957,1733920233310,-601.49397483,0.000249,7]
[345002958,1733920233321,-601.49397483,0.000249,7]
[345002959,1733920233331,-601.49397483,0.000249,7]
[345002960,1733920233342,-601.49397483,0.000249,7]
[345002961,1733920233352,-601.49397483,0.000249,7]
[345002962,1733920233362,-601.49397483,0.000249,7]
[345002963,1733920233372,-601.49397483,0.000249,7]
[345002964,1733920233381,-601.49397483,0.000249,7]
[345002965,1733920233391,-601.49397483,0.000249,7]
[345002966,1733920233401,-601.49397483,0.000249,7]
[345002967,1733920233411,-601.49397483,0.000249,7]
[345002968,1733920233421,-601.49397483,0.000249,7]
[345002969,1733920233431,-601.49397483,0.000249,7]
[345002970,1733920233442,-601.49397483,0.000249,7]
[345002971,1733920233452,-601.49397483,0.000249,7]
[345002972,1733920233461,-601.49397483,0.000249,7]
[345002973,1733920233472,-432.30272771,0.000249,2]
[345002974,1733920233484,-601.49397483,0.000249,7]
[345002975,1733920233497,-601.49397483,0.000249,7]
[345002976,1733920233507,-601.49397483,0.000249,7]
[345002977,1733920233517,-601.49,0.000249,7]
[345002978,1733920233527,-902.24096225,0.000249,7]
[345002979,1733920233537,-902.24096225,0.000249,7]
[345002980,1733920233547,-902.24096225,0.000249,7]
[345002981,1733920233557,-902.24096225,0.000249,7]
[345002982,1733920233567,-902.24096225,0.000249,7]
[345002983,1733920233577,-902.24096225,0.000249,7]
[345002984,1733920233587,-197.29715105,0.000249,7]
[345002985,1733920233599,-350.94683171,0.00024973,2]
[345002986,1733920233610,-500.0,0.00024973,2]
[345002987,1733920233620,-500.0,0.00024973,2]
[345002988,1733920233630,-507.1353063,0.00024973,2]
[345002989,1733920233642,-220.12877861,0.00024973,2]
[345002990,1733920233652,-500.0,0.00024973,2]
[345002991,1733920233661,-365.81878568,0.00024973,2]
[345002992,1733920233671,-302.6652895,0.00024989,2]
[345002993,1733920233683,-500.0,0.00024989,2]
[345002994,1733920233693,-407.3275127,0.00024989,2]
[345002995,1733920233703,-515.28160874,0.00024989,2]
[345002996,1733920233712,-23184.17025614,0.0002499,5]
[345002997,1733920233724,-6566.0632785,0.0002499,5]
[345002998,1733920233902,-503.03255594,0.00024973,2]
[345002999,1733920233912,-381.04564206,0.00024989,2]
[345003000,1733920234110,3209.24068959,0.00023965,11]
[345003008,1733920238571,-1008.89707131,0.00023965,11]
[345003009,1733920238581,-501.10093982,0.00024973,2]
[345003010,1733920238591,-118.95435794,0.00024989,2]
[345003011,1733920238602,-500.0,0.00024989,2]
[345003012,1733920238615,-500.0,0.00024989,2]
[345003013,1733920238625,-500.0,0.00024989,2]
[345003014,1733920238635,-500.0,0.00024989,2]
[345003015,1733920238645,-500.0,0.00024989,2]
[345003016,1733920238655,-500.0,0.00024989,2]
[345003017,1733920238663,-345.87223378,0.00024989,2]
[345003018,1733920238673,-500.0,0.00024989,2]
[345003019,1733920238684,-500.0,0.00024989,2]
[345003020,1733920238693,-500.0,0.00024989,2]
[345003021,1733920238703,-500.0,0.00024989,2]
[345003022,1733920238713,-500.0,0.00024989,2]
[345003023,1733920238722,-500.0,0.00024989,2]
[345003024,1733920238736,-447.46774388,0.00024989,2]
[345003025,1733920238745,-500.0,0.00024989,2]
[345003026,1733920238757,-500.0,0.00024989,2]
[345003027,1733920238766,-500.0,0.00024989,2]
[345003028,1733920238776,-500.0,0.00024989,2]
[345003029,1733920238785,-500.0,0.00024989,2]
[345003030,1733920238794,-500.0,0.00024989,2]
[345003031,1733920238804,-500.0,0.00024989,2]
[345003032,1733920238814,-500.0,0.00024989,2]
[345003033,1733920238824,-500.0,0.00024989,2]
[345003034,1733920238833,-500.0,0.00024989,2]
[345003035,1733920238843,-500.0,0.00024989,2]
[345003036,1733920238853,-500.0,0.00024989,2]
[345003037,1733920238863,-500.0,0.00024989,2]
[345003038,1733920238872,-500.0,0.00024989,2]
[345003039,1733920238883,-500.0,0.00024989,2]
[345003040,1733920238894,-500.0,0.00024989,2]
[345003041,1733920238903,-500.0,0.00024989,2]
[345003042,1733920238913,-500.0,0.00024989,2]
[345003043,1733920238923,-639.87803103,0.00024989,2]
[345003044,1733920238933,-500.0,0.00024989,2]
[345003045,1733920238942,-500.0,0.00024989,2]
[345003046,1733920238951,-500.0,0.00024989,2]
[345003047,1733920238962,-500.0,0.00024989,2]
[345003048,1733920238971,-500.0,0.00024989,2]
[345003049,1733920238982,-500.0,0.00024989,2]
[345003050,1733920238992,-194.51015506,0.00024989,2]
[345003051,1733920239008,-305.48984494,0.00024989,2]
[345003052,1733920239018,-500.0,0.00024989,2]
[345003053,1733920239028,-500.0,0.00024989,2]
[345003054,1733920239038,-500.0,0.00024989,2]
[345003055,1733920239047,-500.0,0.00024989,2]
[345003056,1733920239057,-500.0,0.00024989,2]
[345003057,1733920239067,-524.94801781,0.00024989,2]
[345003058,1733920239077,-500.0,0.00024989,2]
[345003059,1733920239087,-500.0,0.00024989,2]
[345003060,1733920239097,-500.0,0.00024989,2]
[345003061,1733920239106,-500.0,0.00024989,2]
[345003062,1733920239116,-500.0,0.00024989,2]
[345003063,1733920239126,-500.0,0.00024989,2]
[345003064,1733920239135,-500.0,0.00024989,2]
[345003065,1733920239144,-500.0,0.00024989,2]
[345003066,1733920239154,-500.0,0.00024989,2]
[345003067,1733920239163,-500.0,0.00024989,2]
[345003068,1733920239173,-517.33823194,0.00024989,2]
[345003069,1733920239183,-541.23177793,0.00024989,2]
[345003070,1733920239294,-500.0,0.00024989,2]
[345003071,1733920239307,-500.0,0.00024989,2]
[345003072,1733920239317,-500.0,0.00024989,2]
[345003073,1733920239327,-500.0,0.00024989,2]
[345003074,1733920239338,-500.0,0.00024989,2]
[345003075,1733920239349,-500.0,0.00024989,2]
[345003076,1733920239358,-500.0,0.00024989,2]
[345003077,1733920239368,-500.0,0.00024989,2]
[345003078,1733920239377,-500.0,0.00024989,2]
[345003079,1733920239387,-500.0,0.00024989,2]
[345003080,1733920239398,-500.0,0.00024989,2]
[345003081,1733920239408,-500.0,0.00024989,2]
[345003082,1733920239418,-500.0,0.00024989,2]
[345003083,1733920239427,-500.0,0.00024989,2]
[345003084,1733920239437,-500.0,0.00024989,2]
[345003085,1733920239447,-500.0,0.00024989,2]
[345003086,1733920239456,-500.0,0.00024989,2]
[345003087,1733920239465,-500.0,0.00024989,2]
[345003088,1733920239476,-500.0,0.00024989,2]
[345003089,1733920239486,-500.0,0.00024989,2]
[345003090,1733920239496,-500.0,0.00024989,2]
[345003091,1733920239510,-500.0,0.00024989,2]
[345003092,1733920239519,-500.0,0.00024989,2]
[345003093,1733920239528,-500.0,0.00024989,2]
[345003094,1733920239538,-500.0,0.00024989,2]
[345003095,1733920239548,-500.0,0.00024989,2]
[345003096,1733920239558,-500.0,0.00024989,2]
[345003097,1733920239567,-500.0,0.00024989,2]
[345003098,1733920239576,-500.0,0.00024989,2]
[345003099,1733920239586,-500.0,0.00024989,2]
[345003100,1733920239595,-606219.54834961,0.0002499,5]
[345003101,1733920239609,-600.0,0.00025,5]
[345003102,1733920239620,-43237.30883304,0.00025,7]
[345003103,1733920239629,-568.25922258,0.00025,2]
[345003104,1733920239639,-4406.84071844,0.00025,2]
[345003105,1733920239649,-2159.55414784,0.00025,2]
[345003106,1733920239658,-46818.15245332,0.00025,2]
[345003107,1733920239667,-204.37857961,0.00025,2]
[345003108,1733920239677,-220497.0,0.00025,2]
[345003109,1733920239687,-1567.911118,0.00025143,7]
[345003110,1733920239696,-902.24096225,0.00025143,7]
[345003111,1733920239705,-1567.911118,0.00025432,7]
[345003112,1733920239715,-902.24096225,0.00025432,7]
[345003113,1733920239724,-500.0,0.00025521,2]
[345003114,1733920239734,-217.08722081,0.00025521,2]
[345003115,1733920239743,-1000.0,0.00025521,2]
[345003116,1733920239755,-1567.911118,0.00025721,7]
[345003117,1733920239765,-902.24096225,0.00025721,7]
[345003118,1733920239775,-203.52662992,0.00025755,2]
[345003119,1733920239784,-626.725206,0.00025872,2]
[345003120,1733920239794,-24900.0,0.00025921,2]
[345003121,1733920239803,-500.86084163,0.00025973,2]
[345003122,1733920239812,-500.0,0.00025973,2]
[345003123,1733920239822,-343.55762178,0.00025999,2]
[345003124,1733920239831,-33324.844411,0.00026,12]
[345003125,1733920239841,-419.48641852,0.00026,2]
[345003126,1733920239850,-500.0,0.00026,2]
[345003127,1733920239861,-55670.9777805,0.00026,30]
[345003128,1733920239871,-161.26192042,0.00026,2]
[345003129,1733920239881,-329.75118036,0.00026,2]
[345003130,1733920239890,-155.00066495,0.00026,2]
[345003131,1733920239900,-500.0,0.00026,2]
[345003132,1733920239909,-518.15008782,0.00026,2]
[345003133,1733920239919,-1567.911118,0.0002601,7]
[345003134,1733920239928,-902.24096225,0.0002601,7]
[345003135,1733920239938,-1567.911118,0.00026299,7]
[345003137,1733920239947,-902.24096225,0.00026299,7]
[345003138,1733920239956,-514.29730324,0.000265,2]
[345003139,1733920239967,-500.0,0.00026521,2]
[345003140,1733920239977,-1500.0,0.00026522,2]
[345003141,1733920239987,-760.67381721,0.00026548,2]
[345003142,1733920239997,-500.0,0.00026548,2]
[345003143,1733920240008,-420.0,0.00026554,2]
[345003144,1733920240018,-1567.911118,0.00026588,7]
[345003146,1733920240027,-902.24096225,0.00026588,7]
[345003147,1733920240038,-265.04186979,0.00026619,2]
[345003148,1733920240048,-172.522492,0.00026753,2]
[345003149,1733920240057,-881.577823,0.00026852,2]
[345003150,1733920240066,-1567.911118,0.00026877,7]
[345003151,1733920240076,-902.24096225,0.00026877,7]
[345003152,1733920240086,-274.814147,0.00026921,2]
[345003153,1733920240096,-420.0,0.00026949,2]
[345003154,1733920240106,-1835.3155764,0.00026994,2]
[345003156,1733920240116,-157.4263315,0.00027043,2]
[345003159,1733920240125,-1567.911118,0.00027166,7]
[345003161,1733920240136,-902.24096225,0.00027166,7]
[345003163,1733920240146,-531.48869796,0.00027312,2]
[345003165,1733920240155,-1567.911118,0.00027455,7]
[345003167,1733920240165,-902.24096225,0.00027455,7]
[345003169,1733920240175,-160.41904528,0.000275,5]
[345003172,1733920240185,-160.0187682,0.000275,5]
[345003174,1733920240195,-500.0,0.000275,5]
[345003176,1733920240204,-500.0,0.000275,5]
[345003178,1733920240214,-162.86250865,0.000275,5]
[345003180,1733920240224,-200192.13048483,0.000275,7]
[345003182,1733920240234,-232.316827,0.00027727,2]
[345003184,1733920240244,-1567.911118,0.00027744,7]
[345003185,1733920240258,-902.24096225,0.00027744,7]
[345003187,1733920240267,-531.4886979,0.00027779,2]
[345003188,1733920240277,-2000.0,0.0002782,5]
[345003190,1733920240286,-247.14689023,0.00027917,2]
[345003192,1733920240295,-160.50209349,0.0002795,2]
[345003194,1733920240305,-300.325308,0.00028,60]
[345003196,1733920240315,-40133.19742896,0.00028,2]
[345003198,1733920240325,-1567.911118,0.00028033,7]
[345003200,1733920240335,-902.24096225,0.00028033,7]
[345003203,1733920240345,-533.91271525,0.00028048,5]
[345003206,1733920240355,-1000.0,0.00028048,5]
[345003208,1733920240364,-343.52658002,0.000282,2]
[345003211,1733920240374,-531.4886979,0.00028247,2]
[345003213,1733920240383,-1567.911118,0.00028322,7]
[345003215,1733920240393,-902.24096225,0.00028322,7]
[345003217,1733920240403,-155.12131657,0.00028395,2]
[345003219,1733920240413,-1567.911118,0.00028611,7]
[345003221,1733920240423,-902.24096225,0.00028611,7]
[345003222,1733920240432,-531.4886979,0.00028714,2]
[345003224,1733920240442,-232.316827,0.00028753,2]
[345003226,1733920240451,-587.0,0.00028782,2]
[345003229,1733920240460,-3763.36888196,0.00028878,2]
[345003231,1733920240470,-1567.91,0.000289,7]
[345003233,1733920240479,-902.24,0.000289,7]
[345003235,1733920240488,-192.4,0.000289,7]
[345003237,1733920240497,-302.75782099,0.00029,2]
[345003239,1733920240508,-864.3189325,0.00029,2]
[345003241,1733920240518,-141207.07582302,0.00029,14]
[345003243,1733920240528,-1789.65330127,0.00029,2]
[345003245,1733920240537,-982.68481871,0.00029,2]
[345003246,1733920240546,-288.75861131,0.00029,2]
[345003247,1733920240556,-200.0,0.00029,120]
[345003248,1733920240566,-153.0,0.00029041,30]
[345003249,1733920240575,-153.0,0.00029041,30]
[345003250,1733920240584,-153.0,0.00029041,30]
[345003251,1733920240595,-153.0,0.00029041,30]
[345003252,1733920240607,-153.0,0.00029041,30]
[345003253,1733920240617,-641.45578968,0.0002905,5]
[345003254,1733920240627,-430399.44709848,0.000291,2]
[345003255,1733920240636,-151.0,0.000291,7]
[345003256,1733920240647,-151.0,0.000291,7]
[345003257,1733920240656,-183.939,0.0002911,21]
[345003258,1733920240666,-654.376,0.0002911,2]
[345003259,1733920240676,-531.4886979,0.00029181,2]
[345003260,1733920240687,-150.5,0.0002928,120]
[345003261,1733920240697,-302.75782099,0.0002929,2]
[345003262,1733920240707,-155.27510467,0.00029347,2]
[345003263,1733920240716,-2500.0,0.00029356,5]
[345003264,1733920240726,-151.0,0.000294,14]
[345003265,1733920240735,-150.0,0.00029488,2]
[345003266,1733920240745,-179.364326,0.0002952,2]
[345003267,1733920240757,-302.75782099,0.0002958,2]
[345003268,1733920240767,-150.401449,0.000296,2]
[345003269,1733920240776,-587.0,0.00029644,2]
[345003270,1733920240785,-531.4886979,0.00029648,2]
[345003271,1733920240795,-500.36572964,0.00029673,5]
[345003272,1733920240803,-503.27171946,0.00029673,5]
[345003273,1733920240813,-355964.94429185,0.000297,2]
[345003274,1733920240823,-1742.3812292,0.000297,2]
[345003275,1733920240833,-686502.69037017,0.000297,2]
[345003276,1733920240842,-151.0,0.000297,7]
[345003277,1733920240851,-151.0,0.000297,7]
[345003278,1733920240861,-2019.56061816,0.00029701,2]
[345003279,1733920240871,-8985.36985532,0.00029704,2]
[345003280,1733920240880,-150.0,0.00029732,2]
[345003281,1733920240889,-22319.55368915,0.0002975,3]
[345003295,1733920243696,-5045.0,0.0002975,3]
[345003314,1733920446124,286.159928,0.00013973,2]
[345003315,1733920446327,286.159928,0.00020447,2]
[345003339,1733921427530,257.543935,0.00013973,2]
[345003340,1733921427932,257.543935,0.00020447,2]
[345003381,1733921432702,-300.0,0.00024772,2]
[345003383,1733921432712,-300.0,0.00024772,2]
[345003385,1733921432721,-1165.3286917,0.00024773,2]
[345003387,1733921432732,-393.15366656,0.00024773,2]
[345003389,1733921432743,-10380.0327483,0.00024773,2]
[345003391,1733921432752,-2630.75476816,0.00024873,2]
[345003393,1733921432761,-203.95110038,0.00025,2]
[345003395,1733921432770,-500.0,0.00025,2]
[345003397,1733921432779,-500.0,0.00025,2]
[345003399,1733921432788,-202.81277593,0.00025,2]
[345003401,1733921432797,-500.0,0.00025,2]
[345003403,1733921432805,-500.0,0.00025,2]
[345003404,1733921432814,-500.0,0.00025,2]
[345003405,1733921432823,-500.0,0.00025,2]
[345003406,1733921432832,-500.0,0.00025,2]
[345003407,1733921432841,-500.0,0.00025,2]
[345003409,1733921432850,-689.7544968,0.00025193,2]
[345003412,1733921432859,-393.800479,0.00025544,2]
[345003414,1733921432868,-1000.0,0.00025548,2]
[345003416,1733921432877,-376.05328197,0.00025548,2]
[345003418,1733921432888,-1000.0,0.00025548,2]
[345003420,1733921432897,-627.13623746,0.00025548,2]
[345003422,1733921432906,-1000.0,0.00025548,2]
[345003423,1733921432915,-872.21844301,0.00025548,2]
[345003426,1733921432925,-571.28952341,0.00025548,2]
[345003427,1733921432934,-171.0,0.00025999,2]
[345003428,1733921432943,-1218.520173,0.00026319,2]
[345003429,1733921432952,-161.021,0.00026319,13]
[345003430,1733921432961,-500.0,0.0002635,2]
[345003431,1733921432970,-500.0,0.0002635,2]
[345003432,1733921432980,-393.800479,0.00026489,2]
[345003433,1733921432989,-439.52782166,0.0002655,2]
[345003434,1733921432998,-1500.0,0.0002655,2]
[345003436,1733921433007,-1255.81592568,0.0002655,2]
[345003438,1733921433017,-174.442648,0.00026804,2]
[345003440,1733921433026,-420.0,0.00026842,2]
[345003442,1733921433036,-1000.0,0.00026898,2]
[345003444,1733921433045,-257.543935,0.00026921,2]
[345003446,1733921433054,-179.26085,0.0002713,2]
[345003448,1733921433064,-420.0,0.00027249,2]
[345003450,1733921433073,-1221.5782472,0.00027249,2]
[345003452,1733921433083,-500.0,0.00027397,7]
[345003454,1733921433093,-211.7176723,0.00027397,2]
[345003456,1733921433102,-393.800479,0.00027434,2]
[345003458,1733921433111,-17371.7415749,0.00027605,2]
[345003460,1733921433120,-660.0,0.00027605,2]
[345003462,1733921433129,-24900.0,0.00027605,2]
[345003464,1733921433140,-179.26085,0.00027638,2]
[345003466,1733921433150,-1657.16434254,0.00027847,5]
[345003468,1733921433160,-1500.0,0.000279,5]
[345003470,1733921433170,-177.768966,0.0002793,2]
[345003472,1733921433179,-177.768966,0.0002793,41]
[345003474,1733921433189,-177.768966,0.0002793,80]
[345003476,1733921433199,-177.768966,0.0002793,119]
[345003478,1733921433211,-198.29235587,0.00027958,2]
[345003480,1733921433221,-381.73659702,0.00028,2]
[345003482,1733921433231,-179.26085,0.00028145,2]
[345003484,1733921433240,-153.0,0.00028219,30]
[345003486,1733921433250,-153.0,0.00028219,30]
[345003488,1733921433259,-153.0,0.00028219,30]
[345003490,1733921433269,-153.0,0.00028219,30]
[345003492,1733921433281,-393.800479,0.00028379,2]
[345003494,1733921433291,-179.26085,0.00028652,2]
[345003497,1733921433300,-8832.63433602,0.00028726,2]
[345003499,1733921433310,-500.0,0.00028767,9]
[345003501,1733921433320,-8832.63433602,0.00028854,2]
[345003503,1733921433330,-153.0,0.00028878,30]
[345003505,1733921433339,-500.0,0.00028939,2]
[345003507,1733921433349,-500.0,0.00028939,2]
[345003509,1733921433359,-500.0,0.00028939,2]
[345003511,1733921433368,-500.0,0.00028939,2]
[345003513,1733921433378,-500.0,0.00028939,2]
[345003515,1733921433390,-500.0,0.00028939,2]
[345003517,1733921433400,-500.0,0.00028939,2]
[345003519,1733921433410,-415.87688431,0.00028939,2]
[345003521,1733921433419,-153.0,0.00029041,30]
[345003523,1733921433429,-587.0,0.00029086,2]
[345003525,1733921433438,-8832.63433602,0.00029098,2]
[345003527,1733921433448,-151.0,0.000291,7]
[345003529,1733921433459,-151.0,0.000291,7]
[345003531,1733921433468,-151.0,0.000291,7]
[345003533,1733921433477,-641.664,0.0002911,2]
[345003535,1733921433487,-179.26085,0.00029159,2]
[345003537,1733921433497,-2000.0,0.00029197,5]
[345003539,1733921433506,-393.800479,0.00029324,2]
[345003541,1733921433516,-218.16046225,0.000294,120]
[345003546,1733921433561,-81.83953775,0.000294,120]